fUSD/lending_fUSD_20260105
["ID","MTS","AMOUNT","RATE_DAILY","PERIOD"]
[400472498,1767618646239,-500.0,0.00016438,2]
[400472499,1767618646248,-500.0,0.00016438,2]
[400472500,1767618646257,-615.0,0.00016438,2]
[400472501,1767618646267,-4653.81,0.00016438,2]
[400472502,1767618646276,-554.02276297,0.00016545,2]
[400472503,1767618646285,-202.64898847,0.00016585,2]
[400472504,1767618646295,-217.77553687,0.00016612,2]
[400472505,1767618646305,-165.0,0.0001672,2]
[400472506,1767618646314,-554.02276297,0.00016771,2]
[400472507,1767618646323,-217.77553687,0.00016827,2]
[400472508,1767618646334,-166.66,0.00016848,2]
[400472509,1767618646343,-202.64898847,0.00016914,2]
[400472510,1767618646352,-2884.34,0.00016986,2]
[400472511,1767618646361,-554.02276297,0.00016997,2]
[400472512,1767618646371,-250.0,0.00017,2]
[400472513,1767618646380,-217.77553687,0.00017041,2]
[400472514,1767618646389,-574.12855637,0.00017099,2]
[400472515,1767618646399,-500.0,0.00017099,2]
[400472516,1767618646408,-500.0,0.00017099,2]
[400472517,1767618646420,-500.0,0.00017099,2]
[400472518,1767618646429,-500.0,0.00017099,2]
[400472519,1767618646439,-500.0,0.00017099,2]
[400472520,1767618646448,-500.0,0.00017099,2]
[400472521,1767618646458,-500.0,0.00017099,2]
[400472522,1767618646467,-239.95803845,0.00017099,2]
[400472523,1767618646476,-500.0,0.00017173,2]
[400472524,1767618646486,-500.0,0.00017209,2]
[400472525,1767618646496,-554.02276297,0.00017223,2]
[400472526,1767618646505,-1000.0,0.00017227,2]
[400472527,1767618646514,-217.77553687,0.00017256,2]
[400472528,1767618646523,-150.0,0.00017419,2]
[400472529,1767618646532,-150.0,0.00017419,2]
[400472530,1767618646542,-150.0,0.00017419,2]
[400472531,1767618646552,-150.0,0.00017419,2]
[400472532,1767618646561,-150.0,0.00017419,2]
[400472533,1767618646570,-150.0,0.00017419,2]
[400472534,1767618646580,-150.0,0.00017419,2]
[400472535,1767618646589,-500.0,0.00017419,2]
[400472536,1767618646598,-554.02276297,0.00017448,2]
[400472537,1767618646607,-232.88173819,0.00017451,2]
[400472538,1767618646616,-272.05069143,0.00017451,2]
[400472539,1767618646626,-150.0,0.00017451,2]
[400472540,1767618646635,-175.8191271,0.00017451,2]
[400472541,1767618646644,-150.0,0.00017451,2]
[400472542,1767618646655,-500.0,0.00017452,2]
[400472543,1767618646664,-215.19147944,0.00017452,2]
[400472544,1767618646673,-150.0,0.00017452,2]
[400472545,1767618646682,-150.0,0.00017452,2]
[400472546,1767618646691,-217.77553687,0.00017471,2]
[400472547,1767618646700,-150.0,0.00017474,2]
[400472548,1767618646711,-150.0,0.00017474,2]
[400472549,1767618646720,-150.0,0.00017474,2]
[400472550,1767618646731,-253.43540478,0.00017474,2]
[400472551,1767618646739,-150.0,0.00017474,2]
[400472552,1767618646749,-560.55938623,0.00017474,2]
[400472553,1767618646757,-150.0,0.00017506,2]
[400472554,1767618646767,-150.0,0.00017506,2]
[400472555,1767618646775,-500.0,0.00017507,2]
[400472556,1767618646784,-150.0,0.00017507,2]
[400472557,1767618646795,-200.0,0.00017529,2]
[400472558,1767618646804,-150.0,0.00017529,2]
[400472559,1767618646813,-177.26740307,0.00017529,2]
[400472560,1767618646823,-150.0,0.00017529,2]
[400472561,1767618646833,-166.66,0.00017543,2]
[400472562,1767618646843,-158.71398149,0.00017561,2]
[400472563,1767618646852,-497.69035371,0.00017562,2]
[400472564,1767618646862,-200.0,0.00017562,2]
[400472565,1767618646871,-150.0,0.00017583,2]
[400472566,1767618646882,-244.10341084,0.00017583,2]
[400472567,1767618646891,-150.0,0.00017638,2]
[400472568,1767618646901,-1474.52218773,0.0001764,2]
[400472569,1767618646910,-595.37131296,0.00017647,2]
[400472570,1767618646920,-554.02276297,0.00017674,2]
[400472571,1767618646930,-217.77553687,0.00017685,2]
[400472572,1767618646939,-153.36244099,0.00017693,2]
[400472573,1767618646948,-3616.8814291,0.00017693,2]
[400472574,1767618646958,-1266.0,0.00017696,2]
[400472575,1767618646967,-433.0,0.00017696,2]
[400472576,1767618646976,-2435.0,0.00017696,2]
[400472577,1767618646986,-4816.0,0.00017696,2]
[400472578,1767618646995,-153.99599798,0.00017725,2]
[400472579,1767618647006,-157.01932094,0.00017725,2]
[400472580,1767618647015,-169.07279299,0.00017725,2]
[400472581,1767618647024,-150.0,0.00017725,2]
[400472582,1767618647034,-168.0,0.00017775,2]
[400472583,1767618647043,-253.64001631,0.0001778,2]
[400472584,1767618647052,-168.0,0.00017853,2]
[400472585,1767618647061,-200.0,0.00017856,2]
[400472586,1767618647071,-1000.0,0.000179,2]
[400472587,1767618647080,-217.77553687,0.000179,2]
[400472588,1767618647088,-196.10537904,0.000179,2]
[400472589,1767618647098,-554.02276297,0.000179,2]
[400472590,1767618647107,-190.04272048,0.000179,3]
[400472591,1767618647115,-2904.26890724,0.000179,2]
[400472592,1767618647124,-1329.0,0.00017926,2]
[400472593,1767618647134,-614.0,0.00017926,2]
[400472594,1767618647143,-3466.0,0.00017926,2]
[400472595,1767618647152,-500.0,0.00017973,2]
[400472596,1767618647161,-168.0,0.00017986,2]
[400472597,1767618647169,-186.15168494,0.0001799,2]
[400472598,1767618647179,-186.15168494,0.0001799,2]
[400472599,1767618647189,-875.6940507,0.00017996,2]
[400472600,1767618647198,-3847.3981289,0.00017996,2]
[400472601,1767618647208,-1000.0,0.00017999,2]
[400472602,1767618647218,-1000.0,0.00017999,2]
[400472603,1767618647228,-1000.0,0.00017999,2]
[400472604,1767618647242,-1000.0,0.00017999,2]
[400472605,1767618647252,-1000.0,0.00017999,2]
[400472606,1767618647261,-1074.99742895,0.00017999,2]
[400472607,1767618647270,-300.0,0.00017999,2]
[400472608,1767618647279,-666.0,0.00017999,2]
[400472609,1767618647289,-451.40062189,0.00017999,2]
[400472610,1767618647299,-500.0,0.00017999,2]
[400472611,1767618647308,-500.0,0.00017999,2]
[400472612,1767618647318,-500.0,0.00017999,2]
[400472613,1767618647327,-500.0,0.00017999,2]
[400472614,1767618647336,-500.0,0.00017999,2]
[400472615,1767618647345,-500.0,0.00017999,2]
[400472616,1767618647353,-500.0,0.00017999,2]
[400472617,1767618647363,-895.22,0.00017999,2]
[400472618,1767618647372,-500.0,0.00017999,2]
[400472619,1767618647381,-276.34900722,0.00017999,2]
[400472620,1767618647390,-500.0,0.00017999,2]
[400472621,1767618647399,-500.0,0.00017999,2]
[400472622,1767618647408,-500.0,0.00017999,2]
[400472623,1767618647418,-500.0,0.00017999,2]
[400472624,1767618647429,-500.0,0.00017999,2]
[400472625,1767618647438,-500.0,0.00017999,2]
[400472626,1767618647447,-1892.0,0.00018,2]
[400472627,1767618647457,-1330532.0384775,0.00018,2]
[400472628,1767618647466,-1503749.92056535,0.00018,2]
[400472629,1767618746320,644.05,0.00013699,2]
[400472635,1767619635122,-151.0,0.00016394,2]
[400472636,1767619635145,-151.0,0.00016394,2]
[400472637,1767619635166,-151.0,0.00016402,2]
[400472638,1767619635188,-300.0,0.00016788,2]
[400472639,1767619635209,-4345.869355,0.00016789,2]
[400472647,1767619739124,161.39,0.00025109,120]
[400472662,1767619831777,-2717.06,0.0001672,2]
[400472663,1767619831792,-161.39,0.00016739,2]
[400472664,1767619831802,-410.0,0.00016788,2]
[400472665,1767619831812,-2559.92880501,0.00016789,2]
[400472666,1767619831871,-271.90586894,0.00016789,2]
[400472700,1767619837907,-3262.35785856,0.00016789,2]
[400472701,1767619837919,-389.10811249,0.00016789,2]
[400472702,1767619837928,-300.0,0.00016912,2]
[400472703,1767619837937,-300.0,0.00016912,2]
[400472704,1767619837948,-2397.82,0.00016913,2]
[400472705,1767619837960,-999.0,0.00016922,3]
[400472706,1767619837970,-200.0,0.00016943,2]
[400472707,1767619837980,-559.07,0.00016978,2]
[400472708,1767619837989,-150.0,0.00016993,2]
[400472709,1767619837999,-1300.0,0.00017,2]
[400472710,1767619838008,-250.0,0.00017,2]
[400472711,1767619838017,-1095.63646551,0.00017008,2]
[400472732,1767619840033,-169.43353449,0.00017008,2]
[400472733,1767619840042,-151.03,0.00017149,2]
[400472734,1767619840052,-176.13684725,0.00017173,2]
[400472735,1767619840061,-151.0,0.0001735,2]
[400472736,1767619840071,-151.0,0.0001735,2]
[400472737,1767619840080,-555.75,0.000174,2]
[400472738,1767619840090,-178.66,0.000174,2]
[400472739,1767619840099,-150.0,0.000174,2]
[400472740,1767619840110,-170.14961826,0.000174,2]
[400472741,1767619840146,-490.87038174,0.000174,2]
[400472742,1767619840156,-114.83703251,0.000174,2]
[400472753,1767619843546,-367.54296749,0.000174,2]
[400472754,1767619843557,-555.75,0.000174,2]
[400472755,1767619843566,-661.02,0.000174,2]
[400472756,1767619843575,-482.38,0.000174,2]
[400472757,1767619843584,-150.0,0.000174,2]
[400472758,1767619843593,-555.75,0.000174,2]
[400472759,1767619843603,-150.0,0.00017552,2]
[400472760,1767619843612,-150.0,0.00017552,2]
[400472761,1767619843621,-288.0,0.00017707,2]
[400472762,1767619843631,-157.16283373,0.00017726,2]
[400472763,1767619843641,-150.0,0.00017726,2]
[400472764,1767619843650,-277.75685013,0.00017781,2]
[400472765,1767619843659,-3372.104,0.000178,2]
[400472766,1767619843668,-2469.972,0.00017826,2]
[400472767,1767619843677,-300.0,0.00017889,2]
[400472768,1767619843686,-574.12855637,0.00017889,2]
[400472769,1767619843696,-151.0,0.00017897,2]
[400472770,1767619843705,-1090.62620329,0.00017899,2]
[400472771,1767619843714,-650.0,0.00017899,2]
[400472772,1767619843723,-169.48347885,0.00017899,2]
[400472773,1767619843732,-296.31,0.00017899,2]
[400472774,1767619843741,-151.98674136,0.00017899,2]
[400472775,1767619843750,-500.0,0.00017899,2]
[400472776,1767619843759,-500.0,0.00017899,2]
[400472777,1767619843768,-500.0,0.00017899,2]
[400472778,1767619843777,-500.0,0.00017899,2]
[400472779,1767619843786,-151.98674135,0.00017899,2]
[400472780,1767619843798,-151.98674135,0.000179,2]
[400472781,1767619843807,-1552.58449923,0.000179,2]
[400472782,1767619843816,-793.05105528,0.000179,2]
[400472783,1767619843825,-151.98674135,0.000179,2]
[400472784,1767619843835,-25291.32258986,0.000179,2]
[400472785,1767619843844,-613.0,0.0001791,2]
[400472786,1767619843852,-174.554,0.00017926,2]
[400472787,1767619843863,-1266.0,0.00017926,2]
[400472788,1767619843874,-629.072,0.00017926,2]
[400472789,1767619843883,-2676.97401371,0.00017926,2]
[400472790,1767619843901,-3870.02598629,0.00017926,2]
[400472791,1767619843910,-1497.98399422,0.00017926,2]
[400472793,1767619844376,-315.73,0.00017926,2]
[400472794,1767619844399,-3002.28600578,0.00017926,2]
[400472795,1767619844409,-1026.875,0.00017926,2]
[400472796,1767619844418,-3466.0,0.00017926,2]
[400472797,1767619844429,-288.0,0.00017929,2]
[400472798,1767619844440,-255.94702662,0.00017974,2]
[400472799,1767619844449,-219.35995196,0.00017982,2]
[400472800,1767619844458,-968.2360835,0.0001799,2]
[400472801,1767619844467,-968.2360835,0.0001799,2]
[400472802,1767619844477,-968.2360835,0.0001799,2]
[400472803,1767619844487,-288.0,0.00017993,2]
[400472805,1767619844497,-250.88411889,0.00017996,2]
[400472807,1767619844507,-207.88449511,0.00017996,2]
[400472809,1767619844516,-275046.5803468,0.00017997,2]
[400472811,1767619844525,-300.0,0.00017999,2]
[400472813,1767619844534,-666.0,0.00017999,2]
[400472815,1767619844543,-666.0,0.00017999,2]
[400472817,1767619844552,-300.0,0.00017999,2]
[400472819,1767619844561,-640.35101974,0.00017999,2]
[400472821,1767619844571,-503.75302711,0.00017999,2]
[400472823,1767619844580,-1519.0,0.00018,2]
[400472825,1767619844589,-706544.25655639,0.00018,2]
[400472828,1767619844603,-2117802.39331364,0.00018,2]
[400472830,1767619844613,-1223856.84327137,0.00018,2]
[400472832,1767619844623,-1392715.43743572,0.00018,2]
[400472833,1767619844632,-154914.81842115,0.00018,2]
[400472835,1767619844642,-200.0,0.00018,2]
[400472837,1767619844651,-130148.43316622,0.00018,2]
[400472839,1767619844660,-517988.51231743,0.00018,2]
[400472841,1767619844670,-288952.25036152,0.00018,2]
[400472844,1767619844679,-911968.07118328,0.00018,2]
[400472846,1767619844692,-3760.57354956,0.00018,2]
[400472848,1767619844701,-1093820.70214978,0.00018,2]
[400472857,1767619845868,-661.02,0.000174,2]
[400472858,1767619845880,-267.7399995,0.000174,2]
[400472859,1767619846168,-122.66751879,0.000174,2]
[400472868,1767620133584,158.28,8.384e-05,2]
[400472869,1767620133782,158.28,0.00011178,2]
[400472870,1767620133996,158.28,0.00013973,2]
[400472874,1767620829111,-166.66,0.0001623,2]
[400472875,1767620829138,-166.66,0.00016571,2]
[400472876,1767620829165,-500.0,0.00016572,2]
[400472877,1767620829190,-159.41,0.00016649,2]
[400472878,1767620829214,-210.09,0.00016654,3]
[400472879,1767620829238,-181.66986251,0.00016667,2]
[400472880,1767620829263,-1428.65,0.00016745,2]
[400472881,1767620829289,-158.28,0.00016767,2]
[400472882,1767620829317,-166.66,0.00016913,2]
[400472883,1767620829344,-106.38675685,0.00016985,2]
[400472884,1767620841114,-500.0,0.0001671,2]
[400472885,1767620841137,-193.61324315,0.00016985,2]
[400472886,1767620841159,-333.57009539,0.00016986,2]
[400472902,1767621031879,-153.55,0.00016625,2]
[400472903,1767621031888,-300.0,0.00016985,2]
[400472904,1767621031898,-300.0,0.00016985,2]
[400472905,1767621031907,-111.45,0.00016985,2]
[400472906,1767621032045,-945.0,0.00016985,2]
[400472907,1767621032102,-143.55,0.00016985,2]
[400472908,1767621032112,-540.81394183,0.00016986,2]
[400472913,1767621037975,-4402.4726732,0.00016986,2]
[400472914,1767621037986,-8687.97433116,0.00016986,2]
[400472915,1767621037997,-8114.07528653,0.00016986,2]
[400472916,1767621038008,-18.25367189,0.00016986,2]
[400472917,1767621038017,-345.12395602,0.00016986,2]
[400473089,1767621045183,-154.87604398,0.00016986,2]
[400473090,1767621045192,-159.12395602,0.00017041,2]
[400473091,1767621045239,-323.25604398,0.00017041,2]
[400473092,1767621045249,-657.33,0.00017041,2]
[400473093,1767621045259,-200.0,0.000171,2]
[400473094,1767621045270,-661.02,0.00017141,2]
[400473095,1767621045283,-574.35,0.00017141,2]
[400473096,1767621045293,-555.75,0.00017178,2]
[400473097,1767621045302,-250.0,0.0001723,2]
[400473098,1767621045312,-166.66,0.00017255,2]
[400473099,1767621045321,-555.75,0.00017278,2]
[400473100,1767621045331,-150.0,0.000173,2]
[400473101,1767621045341,-150.0,0.000173,2]
[400473102,1767621045350,-150.0,0.000173,2]
[400473103,1767621045360,-151.0,0.00017342,2]
[400473104,1767621045369,-151.0,0.00017351,2]
[400473106,1767621045379,-151.0,0.00017362,2]
[400473107,1767621045389,-150.0,0.000174,2]
[400473108,1767621045398,-150.0,0.000174,2]
[400473109,1767621045409,-548.87,0.000174,2]
[400473110,1767621045418,-480.3,0.000174,2]
[400473111,1767621045427,-150.0,0.00017452,2]
[400473112,1767621045437,-555.75,0.000175,2]
[400473113,1767621045446,-482.38,0.000175,2]
[400473114,1767621045455,-555.75,0.000175,2]
[400473115,1767621045465,-482.38,0.000175,2]
[400473116,1767621045474,-150.0,0.00017552,2]
[400473117,1767621045487,-166.66,0.00017596,2]
[400473118,1767621045496,-1362.62905923,0.0001764,2]
[400473119,1767621045505,-152.13369376,0.00017694,2]
[400473120,1767621045515,-574.12855637,0.00017694,2]
[400473121,1767621045525,-180.70774333,0.00017694,2]
[400473122,1767621045535,-150.0,0.000177,2]
[400473123,1767621045544,-1000.0,0.000177,2]
[400473124,1767621045553,-1231.55868386,0.00017708,2]
[400473125,1767621045563,-157.79600896,0.00017717,2]
[400473126,1767621045573,-500.0,0.00017717,2]
[400473127,1767621045582,-500.0,0.00017717,2]
[400473128,1767621045591,-500.0,0.00017717,2]
[400473129,1767621045601,-604.15643454,0.00017717,2]
[400473130,1767621045611,-500.0,0.00017717,2]
[400473131,1767621045623,-1231.55868386,0.00017729,2]
[400473132,1767621045633,-153.55,0.00017733,2]
[400473133,1767621045642,-119.75686956,0.00017751,2]
[400473134,1767621045663,-1111.8018143,0.00017751,2]
[400473135,1767621045674,-1231.55868386,0.00017772,2]
[400473136,1767621045686,-1231.55868386,0.00017793,2]
[400473137,1767621045696,-237.048,0.00017799,2]
[400473138,1767621045705,-10754.9438,0.000178,2]
[400473139,1767621045714,-1000.0,0.000178,2]
[400473140,1767621045724,-500.0,0.00017808,2]
[400473141,1767621045734,-500.0,0.00017808,2]
[400473142,1767621045743,-500.0,0.00017808,2]
[400473143,1767621045752,-334.82898258,0.00017808,2]
[400473144,1767621045761,-1231.55868386,0.00017815,2]
[400473145,1767621045771,-2227.2301,0.0001782,2]
[400473146,1767621045780,-2227.2301,0.0001782,2]
[400473147,1767621045790,-2227.2301,0.0001782,2]
[400473148,1767621045800,-2227.2301,0.0001782,2]
[400473149,1767621045810,-11585.57099476,0.0001782,2]
[400473150,1767621045820,-288.0,0.00017828,2]
[400473151,1767621045829,-1231.55868386,0.00017836,2]
[400473152,1767621045839,-195.0,0.00017852,2]
[400473153,1767621045848,-200.0,0.00017856,2]
[400473154,1767621045857,-1231.55868386,0.00017857,2]
[400473155,1767621045866,-175.61888322,0.00017878,2]
[400473156,1767621045876,-1231.55868386,0.00017879,2]
[400473157,1767621045885,-500.0,0.00017899,2]
[400473158,1767621045894,-601.78575626,0.00017899,2]
[400473159,1767621045904,-500.0,0.00017899,2]
[400473160,1767621045913,-500.0,0.00017899,2]
[400473161,1767621045922,-500.0,0.00017899,2]
[400473162,1767621045932,-500.0,0.00017899,2]
[400473163,1767621045941,-500.0,0.00017899,2]
[400473164,1767621045951,-500.0,0.00017899,2]
[400473165,1767621045961,-500.0,0.00017899,2]
[400473166,1767621045970,-500.0,0.00017899,2]
[400473167,1767621045980,-500.0,0.00017899,2]
[400473168,1767621045989,-500.0,0.00017899,2]
[400473169,1767621045999,-500.0,0.00017899,2]
[400473170,1767621046009,-1108.84,0.00017899,2]
[400473171,1767621046020,-5486.83325416,0.00017899,2]
[400473172,1767621046031,-2495.51389652,0.00017899,2]
[400473173,1767621046056,-2991.31935756,0.00017899,2]
[400473174,1767621046070,-5486.83325408,0.00017899,2]
[400473175,1767621046086,-5486.83325408,0.00017899,2]
[400473176,1767621046096,-5486.83325408,0.00017899,2]
[400473177,1767621046106,-5486.83325408,0.000179,2]
[400473178,1767621046116,-10000.0,0.000179,2]
[400473179,1767621046126,-349.53584867,0.000179,2]
[400473180,1767621046136,-341.34506588,0.000179,3]
[400473181,1767621046148,-1000.0,0.000179,2]
[400473182,1767621046158,-1231.55868386,0.000179,2]
[400473183,1767621046167,-741.6564629,0.000179,2]
[400473184,1767621046177,-2184.98167556,0.000179,2]
[400473186,1767621046188,-1329.0,0.00017926,2]
[400473187,1767621046202,-3466.0,0.00017926,2]
[400473188,1767621046214,-626.13,0.00017926,2]
[400473189,1767621046224,-549.012,0.00017926,2]
[400473190,1767621046233,-1266.0,0.00017926,2]
[400473191,1767621046243,-565.0,0.00017926,2]
[400473192,1767621046252,-4816.0,0.00017926,2]
[400473193,1767621046262,-150.0,0.00017926,2]
[400473194,1767621046272,-166.66,0.00017938,2]
[400473195,1767621046282,-286.0,0.00017955,2]
[400473196,1767621046292,-288.0,0.00017962,2]
[400473197,1767621046302,-505.25139583,0.00017982,2]
[400473198,1767621046312,-500.0,0.00017996,2]
[400473199,1767621046321,-500.0,0.00017999,2]
[400473200,1767621046331,-500.0,0.00017999,2]
[400473201,1767621046341,-500.0,0.00017999,2]
[400473202,1767621046351,-500.0,0.00017999,2]
[400473203,1767621046360,-500.0,0.00017999,2]
[400473204,1767621046370,-500.0,0.00017999,2]
[400473205,1767621046379,-588.78227506,0.00017999,2]
[400473206,1767621046389,-500.0,0.00017999,2]
[400473207,1767621046401,-500.0,0.00017999,2]
[400473208,1767621046411,-515.95481889,0.00017999,2]
[400473209,1767621046420,-16165.3387229,0.00017999,2]
[400473210,1767621046431,-3040.0222686,0.00017999,2]
[400473211,1767621046445,-500.0,0.00017999,2]
[400473212,1767621046455,-600.92295159,0.00017999,2]
[400473213,1767621046467,-500.0,0.00017999,2]
[400473214,1767621046477,-500.0,0.00017999,2]
[400473215,1767621046487,-500.0,0.00017999,2]
[400473216,1767621046496,-500.0,0.00017999,2]
[400473217,1767621046506,-500.0,0.00017999,2]
[400473218,1767621046516,-500.0,0.00017999,2]
[400473219,1767621046525,-239.95642198,0.00017999,2]
[400473220,1767621046535,-500.0,0.00017999,2]
[400473221,1767621046545,-500.0,0.00017999,2]
[400473222,1767621046554,-511.9256593,0.00017999,2]
[400473223,1767621046564,-695.86626981,0.00017999,2]
[400473224,1767621046574,-3074.0952046,0.00017999,2]
[400473225,1767621046584,-300.0,0.00017999,2]
[400473226,1767621046594,-300.0,0.00017999,2]
[400473227,1767621046604,-621.16489623,0.00017999,2]
[400473228,1767621046614,-2077.0,0.00018,2]
[400473229,1767621046624,-404576.06250116,0.00018,2]
[400473230,1767621046641,-288581.81316284,0.00018,2]
[400473231,1767621046651,-77314.43509978,0.00018,2]
[400473232,1767621046662,-22220.93962766,0.00018,2]
[400473233,1767621046674,-553.29706463,0.00018,2]
[400473234,1767621046688,-1159.3,0.00018,2]
[400473235,1767621046699,-3000.0,0.00018,2]
[400473236,1767621046712,-1000.0,0.00018,2]
[400473237,1767621046727,-400.0,0.00018,2]
[400473238,1767621046798,504.0,0.0003287,120]
[400473239,1767621047527,250.0,0.0003287,120]
[400473245,1767621106700,1385.0,0.0003287,120]
[400473246,1767621108085,1355.79372313,0.0003287,120]
[400473247,1767621125644,600.0,0.0003287,120]
[400473251,1767621226803,1050.0,0.0003287,120]
[400473252,1767621287400,367.0,0.0003287,120]
[400473253,1767621347341,453.0,0.0003287,120]
[400473254,1767621403478,600.0,0.0003287,120]
[400473256,1767621683158,600.0,0.0003287,120]
[400473261,1767621955520,600.0,0.0003287,120]
[400473263,1767622047124,-3240.0,0.00016084,2]
[400473264,1767622047146,-4661.13,0.00016438,2]
[400473265,1767622047168,-150.03,0.00016518,2]
[400473266,1767622047188,-500.0,0.00016525,2]
[400473267,1767622047209,-289.0,0.00016525,2]
[400473268,1767622047230,-189.638,0.00016549,2]
[400473269,1767622047250,-231.54869568,0.00016588,2]
[400473274,1767622214302,223.2320321,4.9e-07,2]
[400473289,1767622240612,-999.0,0.00016493,3]
[400473290,1767622240622,-589.446714,0.00016588,2]
[400473295,1767622245454,-4448.32,0.00016503,2]
[400473296,1767622245468,-1378.63459032,0.00016588,2]
[400473297,1767622245477,-289.0,0.00016588,2]
[400473298,1767622245488,-153.0979558,0.00016653,5]
[400473299,1767622245498,-990.15,0.00016707,2]
[400473300,1767622245507,-230.8899,0.00016786,2]
[400473301,1767622245517,-166.67,0.00016787,2]
[400473302,1767622245526,-722.81439323,0.0001679,2]
[400473303,1767622245536,-1200.0,0.00016884,2]
[400473304,1767622245546,-300.0,0.00016884,2]
[400473305,1767622245555,-300.0,0.00016884,2]
[400473306,1767622245565,-753.6445866,0.00016885,2]
[400473307,1767622245575,-2194.73330165,0.0001689,2]
[400473308,1767622245584,-154.79296797,0.0001689,2]
[400473309,1767622245598,-722.81439322,0.00016949,2]
[400473310,1767622245607,-250.0,0.00017,2]
[400473311,1767622245617,-2194.73330163,0.00017002,2]
[400473312,1767622245626,-154.79296793,0.00017016,2]
[400473313,1767622245636,-689.05499203,0.0001704,2]
[400473314,1767622245646,-267.3406269,0.00017099,2]
[400473315,1767622245655,-722.81439322,0.00017107,2]
[400473316,1767622245667,-2194.73330163,0.00017114,2]
[400473317,1767622245676,-154.79296793,0.00017143,2]
[400473318,1767622245685,-150.0,0.00017178,2]
[400473319,1767622245695,-151.0,0.00017201,2]
[400473320,1767622245704,-151.0,0.00017201,2]
[400473321,1767622245716,-2194.73330163,0.00017227,2]
[400473322,1767622245726,-722.81439322,0.00017266,2]
[400473323,1767622245735,-154.79296793,0.00017269,2]
[400473324,1767622245745,-150.0,0.00017278,2]
[400473325,1767622245754,-2194.73330163,0.00017339,2]
[400473326,1767622245764,-154.79296793,0.00017395,2]
[400473327,1767622245774,-722.81439322,0.00017424,2]
[400473328,1767622245783,-150.03,0.00017435,2]
[400473329,1767622245793,-1000.0,0.00017445,2]
[400473330,1767622245803,-2194.73330163,0.00017451,2]
[400473331,1767622245813,-154.79296793,0.00017521,2]
[400473332,1767622245822,-2194.73330163,0.00017563,2]
[400473333,1767622245831,-722.81439322,0.00017583,2]
[400473334,1767622245841,-681.31452962,0.0001764,2]
[400473335,1767622245850,-154.79296793,0.00017648,2]
[400473336,1767622245859,-2194.73330163,0.00017676,2]
[400473337,1767622245869,-500.0,0.00017699,2]
[400473338,1767622245878,-500.0,0.00017699,2]
[400473339,1767622245888,-500.0,0.00017699,2]
[400473340,1767622245897,-500.0,0.00017699,2]
[400473341,1767622245907,-229.71694685,0.00017699,2]
[400473343,1767622245916,-6140.5806,0.000177,2]
[400473344,1767622245926,-1464.87,0.00017728,2]
[400473345,1767622245935,-150.99,0.00017728,2]
[400473346,1767622245944,-3685.79,0.00017728,2]
[400473347,1767622245953,-5052.815502,0.00017728,2]
[400473348,1767622245970,-4947.174498,0.00017728,2]
[400473349,1767622245979,-150.99,0.00017728,2]
[400473350,1767622245989,-7937.91,0.00017728,2]
[400473351,1767622245998,-1777.86374406,0.00017728,2]
[400473414,1767622400765,499.58735798,0.00032876,120]
[400473419,1767622839959,600.0,0.00032,120]
[400473420,1767622857487,600.0,0.00032,120]
[400473421,1767622861760,166.66,0.00015646,2]
[400473422,1767622862010,166.66,0.00015976,2]
[400473424,1767622951409,699.73,0.00032,120]
[400473426,1767623045948,1889.0,0.00032,120]